bitfinex/quotes_SOLUSD_20230904
["timestamp","ask_amount","ask_price","bid_price","bid_amount"]
[1693847934602,91.6688,19.496,19.491,10.158]
[1693847934808,91.6688,19.496,19.493,2.4]
[1693847935907,8.001,19.498,19.493,2.4]
[1693847936405,8.001,19.498,19.492,55.0]
[1693847936612,8.001,19.498,19.492,2.4]
[1693847937411,8.001,19.498,19.487,2.401]
[1693847937993,8.001,19.498,19.482,40.29061158]
[1693847938707,8.001,19.498,19.485,2.401]
[1693847939708,8.001,19.498,19.485,57.401]
[1693847941107,115.51407182,19.503,19.485,88.039]
[1693847941108,25.845,19.501,19.485,88.039]
[1693847941313,25.845,19.501,19.486,20.0]
[1693847941512,91.2926,19.503,19.49,27.089]
[1693847942012,99.2916,19.503,19.494,10.155]
[1693847942217,7.999,19.503,19.497,2.4]
[1693847942405,7.999,19.503,19.495,57.4]
[1693847943410,7.999,19.503,19.495,55.0]
[1693847946705,7.999,19.503,19.488,7.758]
[1693847946900,7.999,19.503,19.489,20.0]
[1693847947101,7.999,19.503,19.492,2.4]
[1693847949309,7.999,19.503,19.491,2.401]
[1693847949714,94.0331,19.502,19.491,2.401]
[1693847949915,8.0,19.499,19.491,2.401]
[1693847951116,8.0,19.5,19.491,2.401]
[1693847952017,102.0321,19.502,19.491,2.401]
[1693847954924,102.0321,19.502,19.491,57.401]
[1693847956125,7.999,19.502,19.491,57.401]
[1693847957927,7.999,19.502,19.492,55.0]
[1693847958122,7.999,19.502,19.492,2.4]
[1693847961729,7.999,19.502,19.491,2.401]
[1693847969018,7.999,19.502,19.488,20.0]
[1693847969019,64.403,19.502,19.488,20.0]
[1693847969217,33.78,19.5,19.489,0.50482291]
[1693847969430,192.338,19.497,19.485,57.401]
[1693847969737,33.86,19.492,19.482,58.69204747]
[1693847970432,33.86,19.492,19.483,55.0]
[1693847970625,33.86,19.492,19.483,57.402]
[1693847972626,8.003,19.492,19.483,57.402]
[1693847972833,8.003,19.492,19.484,0.66179188]
[1693847973034,8.003,19.492,19.486,2.401]
[1693847973335,8.003,19.492,19.484,2.401]
[1693847974127,8.003,19.492,19.48,58.692047]
[1693847974128,8.003,19.492,19.481,2.402]
[1693847974328,8.003,19.492,19.482,0.61158944]
[1693847974644,8.003,19.492,19.477,21.5]
[1693847974823,8.003,19.492,19.477,1.5]
[1693847975025,33.78,19.49,19.477,1.5]
[1693847975334,33.78,19.49,19.474,2.403]
[1693847975335,90.319,19.487,19.474,3.903]
[1693847975542,90.319,19.487,19.474,1.5]
[1693847975924,90.319,19.487,19.474,3.903]
[1693847976225,90.319,19.487,19.474,2.403]
[1693847976424,90.319,19.487,19.473,17.54160368]
[1693847976632,90.319,19.487,19.474,2.403]
[1693847976827,90.319,19.487,19.475,0.5825367]
[1693847977025,90.319,19.487,19.474,3.27931922]
[1693847977343,90.319,19.487,19.473,15.13860368]
[1693847977544,90.319,19.487,19.474,0.51687078]
[1693847977729,90.319,19.487,19.473,15.13860368]
[1693847977925,90.319,19.487,19.474,0.73299069]
[1693847978126,90.319,19.487,19.473,15.13860368]
[1693847979249,90.319,19.487,19.472,2.403]
[1693847979430,90.319,19.487,19.473,0.7011087]
[1693847979630,90.319,19.487,19.473,3.1041087]
[1693847979925,90.319,19.487,19.473,0.77308052]
[1693847980131,90.319,19.487,19.471,1.27761467]
[1693847981720,90.319,19.487,19.471,3.68061467]
[1693847983744,90.319,19.487,19.471,20.62861467]
[1693847984930,8.005,19.487,19.471,51.28861467]
[1693847985342,8.005,19.487,19.471,77.04643201]
[1693847986545,8.005,19.487,19.471,46.38643201]
[1693847987442,8.005,19.487,19.471,20.62861467]
[1693847990042,8.005,19.487,19.471,3.68061467]
[1693847990939,32.22647182,19.487,19.471,3.68061467]
[1693847992039,32.22647182,19.487,19.471,2.403]
[1693847993353,32.22647182,19.487,19.472,0.5199346]
[1693847993543,32.22647182,19.487,19.474,2.403]
[1693847994248,8.005,19.487,19.474,2.403]
[1693847994637,8.005,19.487,19.474,19.348]
[1693847995254,8.005,19.487,19.474,2.403]
[1693847997945,8.005,19.487,19.473,2.403]
[1693847999438,8.005,19.487,19.472,2.403]
[1693847999850,8.005,19.487,19.47,1.5]
[1693848000046,24.22147182,19.486,19.47,1.5]
[1693848000245,33.78,19.48,19.47,3.903]
[1693848000446,33.78,19.48,19.464,7.768]
[1693848000447,33.885,19.477,19.464,7.768]
[1693848000742,33.885,19.477,19.465,2.404]
[1693848001150,8.009,19.477,19.465,2.404]
[1693848001742,8.009,19.477,19.461,15.06930184]
[1693848001950,8.009,19.477,19.462,0.95569539]
[1693848004460,8.009,19.477,19.464,2.404]
[1693848005058,8.009,19.477,19.464,57.404]
[1693848005459,110.18,19.477,19.464,55.0]
[1693848005645,110.18,19.477,19.464,57.404]
[1693848006048,110.18,19.477,19.464,2.404]
[1693848006349,110.18,19.477,19.46,7.769]
[1693848006558,110.18,19.477,19.464,2.404]
[1693848007052,110.18,19.477,19.459,40.382322]
[1693848007261,110.18,19.477,19.46,1.03256863]
[1693848007663,8.009,19.477,19.464,2.404]
[1693848008755,8.009,19.477,19.464,10.172]
[1693848008960,8.009,19.477,19.465,55.0]
[1693848009148,8.009,19.477,19.466,2.404]
[1693848009854,25.868,19.484,19.467,1.26006363]
[1693848010066,25.868,19.484,19.467,56.26006363]
[1693848010262,33.877,19.482,19.468,20.0]
[1693848010465,90.339,19.482,19.469,56.26006363]
[1693848010759,90.339,19.482,19.469,55.0]
[1693848011750,90.339,19.482,19.47,2.403]
[1693848011964,33.877,19.482,19.47,2.403]
[1693848012564,97.3845,19.486,19.47,2.403]
[1693848013050,8.006,19.484,19.47,2.403]
[1693848015361,64.462,19.484,19.47,2.403]
[1693848015762,8.006,19.484,19.47,2.403]
[1693848025675,8.006,19.484,19.471,0.69727475]
[1693848025977,8.006,19.484,19.474,2.403]
[1693848038084,8.006,19.484,19.469,62.765]
[1693848038274,33.91,19.48,19.469,62.765]
[1693848038468,8.009,19.477,19.471,2.403]
[1693848040070,8.009,19.477,19.467,62.765]
[1693848040271,8.009,19.477,19.463,7.768]
[1693848040469,8.009,19.477,19.467,2.404]
[1693848041065,8.009,19.477,19.466,20.0]
[1693848041269,8.009,19.477,19.467,2.404]
[1693848041768,8.009,19.477,19.467,22.404]
[1693848042584,8.009,19.477,19.467,20.0]
[1693848042883,8.009,19.477,19.466,2.404]
[1693848045582,8.009,19.477,19.465,22.404]
[1693848046576,8.009,19.477,19.464,2.404]
[1693848046773,8.009,19.477,19.463,2.404]
[1693848047379,93.3374,19.476,19.463,2.404]
[1693848047580,33.894,19.473,19.463,2.404]
[1693848050274,8.011,19.473,19.463,2.404]
[1693848052487,93.3374,19.476,19.463,19.359]
[1693848052996,56.452,19.486,19.464,21.5]
[1693848053294,8.008,19.479,19.47,2.403]
[1693848058699,8.008,19.48,19.47,2.403]
[1693848059880,8.008,19.48,19.47,57.403]
[1693848061099,8.008,19.48,19.47,2.403]
[1693848062403,8.008,19.48,19.47,57.403]
[1693848064100,8.008,19.48,19.47,55.0]
[1693848064805,8.008,19.48,19.47,57.403]
[1693848065414,8.008,19.48,19.47,55.0]
[1693848066001,8.008,19.48,19.47,57.403]
[1693848066704,8.008,19.48,19.466,7.767]
[1693848066904,8.008,19.48,19.467,77.403]
[1693848068000,41.948,19.48,19.467,77.403]
[1693848080406,92.2337,19.483,19.467,77.403]
[1693848080715,100.2407,19.483,19.467,77.403]
[1693848081113,8.007,19.483,19.468,0.54619834]
[1693848081317,8.007,19.483,19.472,2.403]
[1693848081508,8.007,19.483,19.472,57.403]
[1693848082713,33.94,19.48,19.472,2.403]
[1693848082914,8.008,19.479,19.472,2.403]
[1693848083100,41.948,19.48,19.472,2.403]
[1693848083920,41.948,19.48,19.472,57.403]
[1693848085905,41.948,19.48,19.472,2.403]
[1693848087113,131.4008,19.49,19.472,2.403]
[1693848087312,8.006,19.486,19.472,2.403]
[1693848087503,8.005,19.488,19.472,2.403]
[1693848087709,8.005,19.488,19.473,0.51288604]
[1693848087908,8.005,19.488,19.477,10.164]
[1693848088319,8.005,19.488,19.478,20.0]
[1693848088622,8.005,19.488,19.481,2.402]
[1693848088809,41.944,19.49,19.481,2.402]
[1693848089007,8.004,19.49,19.481,2.402]
[1693848091332,8.002,19.495,19.481,19.341]
[1693848091514,33.94,19.5,19.481,19.341]
[1693848091826,8.002,19.495,19.481,19.341]
[1693848092330,8.002,19.495,19.481,91.688]
[1693848094026,33.94,19.5,19.481,91.688]
[1693848094027,33.94,19.5,19.486,10.16]
[1693848094229,41.94,19.5,19.49,10.158]
[1693848094815,41.94,19.5,19.49,2.401]
[1693848095020,41.94,19.5,19.489,20.0]
[1693848095628,41.94,19.5,19.487,20.0]
[1693848096209,41.94,19.5,19.488,2.401]
[1693848098017,8.0,19.5,19.488,2.401]
[1693848099128,56.41,19.501,19.488,2.401]
[1693848099823,8.0,19.5,19.488,2.401]
[1693848105730,20.0,19.499,19.484,7.76]
[1693848106036,8.002,19.495,19.487,2.401]
[1693848106729,33.854,19.495,19.483,15.58829568]
[1693848106931,33.854,19.495,19.479,16.941]
[1693848107134,33.854,19.495,19.48,7.761]
[1693848108535,33.854,19.495,19.48,28.285858]
[1693848108736,33.854,19.495,19.483,2.402]
[1693848111124,8.002,19.495,19.483,2.402]
[1693848118648,8.002,19.495,19.48,20.524858]
[1693848118830,8.002,19.495,19.479,7.762]
[1693848119145,2.64431056,19.494,19.48,2.402]
[1693848119330,41.874,19.49,19.48,2.402]
[1693848119640,118.1858,19.499,19.48,2.402]
[1693848119641,56.429,19.494,19.48,2.402]
[1693848119838,8.004,19.489,19.48,2.402]
[1693848120046,8.004,19.49,19.48,2.402]
[1693848124046,33.863,19.49,19.48,2.402]
[1693848124247,8.004,19.49,19.48,2.402]
[1693848127451,8.004,19.49,19.479,2.402]
[1693848132937,8.003,19.491,19.479,2.402]
[1693848133144,98.7518,19.492,19.48,33.87]
[1693848133361,98.7518,19.492,19.483,2.402]
[1693848133362,8.003,19.491,19.483,2.402]
[1693848133659,98.7518,19.492,19.483,10.162]
[1693848134259,106.7548,19.492,19.483,10.162]
[1693848134760,106.7548,19.492,19.483,2.402]
[1693848139958,106.7548,19.492,19.483,57.402]
[1693848141550,8.003,19.492,19.483,57.402]
[1693848148753,8.003,19.492,19.48,43.46154824]
[1693848148953,8.003,19.492,19.479,2.402]
[1693848149467,8.005,19.488,19.479,2.402]
[1693848149955,8.005,19.488,19.478,22.402]
[1693848150154,8.005,19.488,19.479,0.75896731]
[1693848150363,8.005,19.488,19.479,3.16096731]
[1693848150673,8.002,19.493,19.48,33.87]
[1693848150966,8.002,19.493,19.485,2.401]
[1693848151174,8.002,19.493,19.481,24.7]
[1693848151369,8.002,19.493,19.482,1.5]
[1693848151567,8.002,19.493,19.484,2.401]
[1693848157561,8.002,19.493,19.483,2.402]
[1693848157873,8.002,19.493,19.481,0.50239391]
[1693848158461,8.002,19.493,19.481,2.90439391]
[1693848158777,2.58533418,19.492,19.481,2.402]
[1693848158971,33.864,19.489,19.48,2.402]
[1693848159575,8.004,19.489,19.48,2.402]
[1693848159761,8.004,19.489,19.48,10.163]
[1693848160073,8.004,19.49,19.483,2.402]
[1693848160772,33.863,19.49,19.478,68.31202565]
[1693848160977,33.863,19.49,19.48,2.402]
[1693848161887,8.004,19.49,19.48,10.163]
[1693848162571,8.004,19.49,19.481,0.63078429]
[1693848162769,8.004,19.49,19.483,2.402]
[1693848163173,8.004,19.49,19.48,7.761]
[1693848163373,33.863,19.49,19.48,2.402]
[1693848163571,8.003,19.492,19.48,36.272]
[1693848163784,8.003,19.493,19.48,60.973]
[1693848164078,2.68296861,19.492,19.48,60.973]
[1693848164279,8.003,19.492,19.48,60.973]
[1693848166179,8.002,19.493,19.48,60.973]
[1693848166480,95.3529,19.498,19.481,88.34300973]
[1693848166660,2.6648057,19.497,19.49,33.87]
[1693848166989,7.997,19.506,19.492,57.712]
[1693848166990,7.998,19.503,19.492,57.712]
[1693848167283,3.44461036,19.502,19.492,27.085]
[1693848167779,3.44461036,19.504,19.492,27.085]
[1693848168082,11.44261036,19.504,19.492,27.085]
[1693848168378,11.44261036,19.504,19.492,86.712817]
[1693848168768,3.44461036,19.504,19.492,86.712817]
[1693848169277,3.44461036,19.505,19.492,86.712817]
[1693848170179,11.44261036,19.505,19.496,10.155]
[1693848170376,11.44261036,19.505,19.499,2.4]
[1693848172479,11.44261036,19.505,19.497,57.4]
[1693848172675,11.44261036,19.505,19.497,55.0]
[1693848173278,11.44261036,19.505,19.497,57.4]
[1693848174783,11.44261036,19.505,19.497,2.4]
[1693848177773,11.44261036,19.505,19.49,50.801]
[1693848177975,11.44261036,19.505,19.491,41.86256409]
[1693848178485,11.44261036,19.505,19.484,30.639]
[1693848178486,11.44261036,19.505,19.492,2.4]
[1693848179494,93.4928,19.504,19.492,2.4]
[1693848179696,7.999,19.501,19.492,2.4]
[1693848181290,2.21363197,19.5,19.492,2.4]
[1693848181497,8.0,19.499,19.492,2.4]
[1693848182100,93.4928,19.504,19.492,2.4]
[1693848182285,2.99490191,19.503,19.492,2.4]
[1693848183498,8.0,19.5,19.492,2.4]
[1693848185894,2.36235459,19.499,19.492,2.4]
[1693848186098,10.36235459,19.499,19.492,2.4]
[1693848186389,8.0,19.499,19.491,55.0]
[1693848186581,8.0,19.499,19.491,2.401]
[1693848196801,8.0,19.5,19.491,2.401]
[1693848197004,2.260214,19.499,19.491,2.401]
[1693848197994,10.260214,19.499,19.491,2.401]
[1693848198195,8.0,19.499,19.491,2.401]
[1693848201106,0.49999999,19.498,19.491,2.401]
[1693848201298,8.49999999,19.498,19.491,2.401]
[1693848201499,8.0,19.498,19.491,2.401]
[1693848203505,0.49999999,19.497,19.48,33.87]
[1693848203710,33.859,19.492,19.482,2.402]
[1693848203892,0.49999999,19.491,19.482,2.402]
[1693848204199,0.49999999,19.493,19.482,10.163]
[1693848204397,8.50299999,19.493,19.482,10.163]
[1693848204608,8.50299999,19.493,19.482,44.033]
[1693848204809,8.003,19.493,19.483,0.98744848]
[1693848205011,0.49999999,19.492,19.485,2.401]
[1693848205189,8.003,19.491,19.485,2.401]
[1693848205389,8.003,19.491,19.484,2.401]
[1693848209599,8.003,19.493,19.484,2.401]
[1693848211809,0.49999999,19.492,19.484,2.401]
[1693848212017,8.003,19.491,19.484,2.401]
[1693848212203,8.002,19.496,19.484,2.401]
[1693848212404,0.49999999,19.495,19.484,22.401]
[1693848212612,0.49999999,19.499,19.485,27.25781734]
[1693848212911,92.438,19.501,19.485,27.25781734]
[1693848212912,0.49999999,19.5,19.489,57.723]
[1693848213415,8.49999999,19.5,19.49,0.85429148]
[1693848213717,8.49999999,19.5,19.493,2.4]
[1693848214010,8.49999999,19.5,19.485,25.75781734]
[1693848214197,42.36999999,19.5,19.487,0.65249221]
[1693848214398,33.853,19.496,19.487,2.401]
[1693848214813,0.49999999,19.495,19.487,10.16]
[1693848215000,0.49999999,19.496,19.487,10.16]
[1693848215400,0.49999999,19.496,19.488,20.0]
[1693848215712,0.49999999,19.498,19.49,10.158]
[1693848216206,8.49999999,19.498,19.49,2.401]
[1693848216799,8.49999999,19.498,19.489,22.401]
[1693848217315,8.49999999,19.498,19.489,2.401]
[1693848218010,64.91599999,19.498,19.485,2.401]
[1693848218309,166.97699999,19.498,19.484,2.401]
[1693848218814,33.857,19.494,19.484,2.401]
[1693848219115,0.49999999,19.493,19.484,2.401]
[1693848219406,8.50299999,19.493,19.484,2.401]
[1693848219911,8.003,19.493,19.484,2.401]
[1693848220498,0.49999999,19.492,19.484,2.401]
[1693848220695,8.004,19.49,19.484,2.401]
[1693848221308,8.004,19.49,19.48,64.916]
[1693848221309,67.733,19.49,19.48,64.916]
[1693848221608,67.733,19.49,19.47,33.87]
[1693848221609,67.733,19.49,19.47,25.75781734]
[1693848221796,8.006,19.485,19.475,2.403]
[1693848221996,33.872,19.485,19.475,2.403]
[1693848229010,33.872,19.485,19.477,2.402]
[1693848229901,8.006,19.485,19.477,2.402]
[1693848237116,8.006,19.485,19.476,2.402]
[1693848238010,8.006,19.485,19.474,3.38769677]
[1693848245822,94.9794,19.488,19.474,23.38769677]
[1693848246018,94.9794,19.488,19.474,49.14551411]
[1693848246218,102.9844,19.488,19.474,49.14551411]
[1693848246721,8.005,19.488,19.474,49.14551411]
[1693848248926,33.87,19.49,19.474,49.14551411]
[1693848249124,26.34799999,19.499,19.486,10.16]
[1693848249333,20.0,19.498,19.486,10.16]
[1693848249527,0.49999999,19.497,19.486,10.16]
[1693848249720,20.0,19.498,19.486,10.16]
[1693848249721,0.49999999,19.495,19.486,10.16]
[1693848249930,8.002,19.494,19.486,2.401]
[1693848250121,0.49999999,19.493,19.486,2.401]
[1693848250320,8.003,19.492,19.486,2.401]
[1693848250521,0.49999999,19.491,19.486,2.401]
[1693848250925,0.49999999,19.492,19.486,2.401]
[1693848251517,33.862,19.491,19.481,2.402]
[1693848251837,33.87,19.49,19.481,2.402]
[1693848252059,8.005,19.488,19.481,2.402]
[1693848252632,8.005,19.488,19.48,1.5]
[1693848253042,8.005,19.488,19.479,1.5]
[1693848253229,8.005,19.488,19.478,20.0]
[1693848253533,8.005,19.488,19.476,2.402]
[1693848253736,8.005,19.488,19.477,1.5]
[1693848254320,8.005,19.488,19.476,3.902]
[1693848254522,8.005,19.488,19.476,1.5]
[1693848254728,8.005,19.488,19.476,3.902]
[1693848254930,8.005,19.488,19.47,25.75781734]
[1693848254931,8.005,19.488,19.475,1.5]
[1693848255129,8.005,19.488,19.47,2.403]
[1693848255326,8.005,19.488,19.471,1.5]
[1693848256032,8.005,19.488,19.471,3.903]
[1693848256434,8.005,19.488,19.471,1.5]
[1693848256739,33.89,19.48,19.471,1.5]
[1693848256930,90.361,19.478,19.469,1.5]
[1693848257126,90.361,19.478,19.466,1.5]
[1693848257327,99.2157,19.477,19.466,1.5]
[1693848257526,8.01,19.474,19.466,3.904]
[1693848258939,8.01,19.475,19.466,3.904]
[1693848264939,8.01,19.475,19.466,58.904]
[1693848265142,8.01,19.475,19.466,1.5]
[1693848265443,8.01,19.475,19.46,2.404]
[1693848265743,8.01,19.475,19.461,1.5]
[1693848266136,8.01,19.475,19.461,3.904]
[1693848267229,8.01,19.475,19.461,1.5]
[1693848267436,99.2157,19.477,19.455,2.405]
[1693848267437,90.407,19.468,19.455,2.405]
[1693848267637,90.407,19.468,19.457,1.5]
[1693848267837,8.014,19.464,19.457,3.905]
[1693848268045,8.014,19.464,19.457,2.405]
[1693848268245,8.014,19.464,19.458,1.5]
[1693848268445,8.014,19.464,19.457,2.405]
[1693848268746,8.014,19.464,19.458,1.5]
[1693848269147,8.014,19.464,19.452,1.5]
[1693848269447,8.014,19.464,19.452,15.21891057]
[1693848269852,8.014,19.464,19.453,2.405]
[1693848271753,8.014,19.464,19.453,57.405]
[1693848271951,8.014,19.464,19.453,55.0]
[1693848272151,8.014,19.464,19.45,25.757818]
[1693848272355,8.014,19.464,19.454,2.405]
[1693848273553,8.014,19.464,19.454,57.405]
[1693848275154,8.014,19.464,19.454,2.405]
[1693848282079,117.6306,19.467,19.454,2.405]
[1693848282285,91.7406,19.467,19.454,2.405]
[1693848282470,99.7536,19.467,19.455,0.80357696]
[1693848282775,99.7536,19.467,19.458,10.175]
[1693848283984,33.89,19.47,19.458,27.134]
[1693848284186,56.484,19.475,19.458,27.134]
[1693848284187,8.01,19.475,19.458,27.134]
[1693848284368,8.01,19.475,19.463,10.172]
[1693848284571,64.492,19.475,19.463,2.404]
[1693848284775,64.492,19.475,19.462,2.404]
[1693848284978,64.492,19.475,19.46,2.404]
[1693848285272,33.89,19.47,19.459,77.404]
[1693848285590,33.903,19.467,19.459,77.405]
[1693848286582,8.013,19.467,19.459,77.405]
[1693848289888,33.89,19.47,19.459,77.405]
[1693848290188,117.6677,19.474,19.459,77.405]
[1693848290687,8.011,19.472,19.459,77.405]
[1693848294086,91.7867,19.474,19.459,77.405]
[1693848294281,8.01,19.476,19.459,133.84181734]
[1693848294595,8.01,19.476,19.46,1.5]
[1693848294785,8.01,19.476,19.464,27.124]
[1693848295093,8.01,19.476,19.467,2.403]
[1693848295591,8.01,19.476,19.467,57.403]
[1693848296899,8.01,19.476,19.468,55.0]
[1693848297081,8.01,19.476,19.468,2.403]
[1693848300491,8.01,19.476,19.466,55.0]
[1693848303397,24.08907752,19.475,19.459,20.0]
[1693848303701,90.393,19.471,19.459,22.405]
[1693848303899,90.393,19.471,19.457,20.0]
[1693848304485,90.393,19.471,19.458,55.0]
[1693848304686,90.393,19.471,19.459,20.0]
[1693848304889,90.393,19.471,19.46,55.0]
[1693848306587,90.393,19.471,19.46,57.404]
[1693848306995,90.393,19.471,19.46,55.0]
[1693848307702,90.393,19.471,19.46,57.404]
[1693848309303,33.89,19.47,19.46,55.0]
[1693848309488,8.013,19.467,19.46,55.0]
[1693848311403,8.013,19.467,19.458,2.405]
[1693848311899,8.013,19.467,19.457,57.405]
[1693848312101,8.013,19.467,19.458,20.0]
[1693848312891,8.013,19.467,19.457,2.405]
[1693848313300,8.013,19.467,19.456,22.405]
[1693848313496,8.013,19.467,19.454,20.0]
[1693848313810,8.013,19.467,19.455,55.82284829]
[1693848314109,8.013,19.467,19.456,20.0]
[1693848314302,8.013,19.467,19.457,55.0]
[1693848314702,8.013,19.467,19.458,20.0]
[1693848315711,8.013,19.467,19.458,22.405]
[1693848315890,8.013,19.467,19.458,20.0]
[1693848317810,8.013,19.467,19.458,22.405]
[1693848318001,8.013,19.467,19.459,55.0]
[1693848318906,169.45,19.47,19.459,57.405]
[1693848319106,8.012,19.469,19.459,65.175]
[1693848319300,8.012,19.469,19.459,57.405]
[1693848320110,33.89,19.47,19.459,57.405]
[1693848320496,33.899,19.469,19.459,57.405]
[1693848322108,8.012,19.469,19.459,57.405]
[1693848322597,33.89,19.47,19.459,57.405]
[1693848323213,41.902,19.47,19.459,57.405]
[1693848326211,33.89,19.47,19.459,57.405]
[1693848326513,41.902,19.47,19.459,57.405]
[1693848326709,33.89,19.47,19.459,57.405]
[1693848327302,41.902,19.47,19.459,57.405]
[1693848329915,33.89,19.47,19.459,57.405]
[1693848330304,41.902,19.47,19.459,57.405]
[1693848331218,33.89,19.47,19.459,55.0]
[1693848331401,41.902,19.47,19.459,57.405]
[1693848334610,98.399,19.47,19.458,20.0]
[1693848334804,233.959,19.47,19.459,20.0]
[1693848335007,233.959,19.47,19.457,2.405]
[1693848336217,233.959,19.47,19.457,22.405]
[1693848336421,233.959,19.47,19.458,55.0]
[1693848336708,233.959,19.47,19.459,20.0]
[1693848336904,233.959,19.47,19.46,55.0]
[1693848338017,98.489,19.47,19.46,55.0]
[1693848339210,98.489,19.47,19.46,57.404]
[1693848342817,98.489,19.47,19.46,55.0]
[1693848348322,41.992,19.47,19.462,2.404]
[1693848348826,33.98,19.47,19.462,2.404]
[1693848349017,33.98,19.47,19.462,57.404]
[1693848349726,41.992,19.47,19.462,57.404]
[1693848351326,41.992,19.47,19.462,55.0]
[1693848351826,41.992,19.47,19.462,57.404]
[1693848352320,33.98,19.47,19.462,88.079]
[1693848352724,33.98,19.47,19.462,57.404]
[1693848354613,33.98,19.47,19.462,55.0]
[1693848354809,8.013,19.468,19.461,55.0]
[1693848355016,8.013,19.468,19.46,55.0]
[1693848355418,8.012,19.469,19.461,2.404]
[1693848355923,33.98,19.47,19.461,10.173]
[1693848356122,33.98,19.47,19.462,55.0]
[1693848356428,33.98,19.47,19.464,2.404]
[1693848356628,33.98,19.47,19.464,57.404]
[1693848356932,41.992,19.47,19.464,55.0]
[1693848357228,41.992,19.47,19.459,20.0]
[1693848357429,41.992,19.47,19.459,2.404]
[1693848357934,41.982,19.47,19.459,2.404]
[1693848358728,41.982,19.47,19.459,57.404]
[1693848361634,41.982,19.47,19.459,55.0]
[1693848364234,41.982,19.47,19.458,2.405]
[1693848364439,41.982,19.47,19.456,20.0]
[1693848364735,41.982,19.47,19.456,0.87772583]
[1693848365417,41.982,19.47,19.456,55.87772583]
[1693848365620,41.982,19.47,19.457,20.0]
[1693848365823,41.982,19.47,19.458,55.0]
[1693848366217,41.982,19.47,19.459,20.0]
[1693848370036,201.95107752,19.47,19.45,7.773]
[1693848370237,138.03817752,19.469,19.451,56.5]
[1693848370436,138.03817752,19.469,19.452,2.405]
[1693848370437,33.908,19.464,19.452,2.405]
[1693848371328,33.908,19.464,19.453,0.97931188]
[1693848371528,33.908,19.464,19.453,3.38431188]
[1693848371729,33.908,19.464,19.453,2.405]